bitfinex-derivatives/quotes_ETHF0:USTF0_20250804
["timestamp","ask_amount","ask_price","bid_price","bid_amount"]
[1754300147346,20.9559,3556.0,3555.9,1.01238769]
[1754300149740,20.9559,3556.0,3555.9,1.22048769]
[1754300149945,20.9559,3556.0,3555.9,2.04158769]
[1754300150444,19.8817,3556.0,3555.9,2.35888769]
[1754300150648,20.4901,3556.0,3555.9,2.65178769]
[1754300150848,20.9559,3556.0,3555.9,2.65178769]
[1754300151147,20.9559,3556.0,3555.9,1.01238769]
[1754300151943,21.11240082,3556.0,3555.9,1.01238769]
[1754300154855,20.9559,3556.0,3555.9,1.01238769]
[1754300158854,1.7719,3556.0,3555.9,2.68068769]
[1754300159156,20.9549,3556.0,3555.9,2.68068769]
[1754300159952,20.9549,3556.0,3555.9,1.01238769]
[1754300160159,20.9549,3556.0,3555.9,1.43468769]
[1754300160454,20.9549,3556.0,3555.9,2.68068769]
[1754300160857,0.56239,3556.1,3555.9,2.31049769]
[1754300161154,2.34459,3556.1,3556.0,1.6683]
[1754300161354,21.52759,3556.1,3556.0,1.6683]
[1754300161555,1.086,3556.0,3555.9,1.57479769]
[1754300161753,1.7822,3556.0,3555.9,1.01238769]
[1754300161958,1.7822,3556.0,3555.9,1.22058769]
[1754300162254,1.7822,3556.0,3555.9,2.07168769]
[1754300162953,0.56239,3556.1,3556.0,0.56241]
[1754300163155,20.83139,3556.1,3556.0,2.23071]
[1754300163359,21.6840429,3556.1,3556.0,2.23071]
[1754300163554,21.6840429,3556.1,3556.0,1.6683]
[1754300164455,21.1216529,3556.1,3556.0,1.6683]
[1754300165153,0.1564529,3556.1,3556.0,1.6683]
[1754300165360,0.1564529,3556.2,3556.1,2.23069]
[1754300165559,19.3394529,3556.2,3556.1,2.23069]
[1754300165858,19.4745,3556.2,3556.1,2.23069]
[1754300166360,19.183,3556.2,3556.1,2.23069]
[1754300167361,43.7008,3556.3,3556.1,2.23069]
[1754300167562,19.183,3556.2,3556.1,1.29809]
[1754300168266,43.7008,3556.3,3556.2,0.6125]
[1754300168461,62.8828,3556.3,3556.2,1.6683]
[1754300169755,3.2078,3556.3,3556.2,1.6683]
[1754300169965,22.3898,3556.3,3556.2,1.6683]
[1754300172566,3.2078,3556.8,3556.7,2.2305]
[1754300172767,22.3878,3556.8,3556.7,2.2305]
[1754300173268,1.086,3557.2,3557.1,2.23043]
[1754300173269,1.577,3557.2,3557.1,2.23043]
[1754300173565,21.1186242,3557.2,3557.1,2.23043]
[1754300173962,0.8158,3557.1,3557.0,0.56223]
[1754300174167,1.7822,3557.1,3557.0,0.56223]
[1754300176162,1.7822,3557.1,3557.0,1.29793]
[1754300176464,4.99,3557.4,3557.3,2.2304]
[1754300176665,24.168,3557.4,3557.3,2.2304]
[1754300176968,4.99,3557.4,3557.3,2.2304]
[1754300177164,24.168,3557.4,3557.3,2.2304]
[1754300181458,4.4657,3557.4,3557.3,2.2304]
[1754300181664,23.6417,3557.4,3557.3,2.2304]
[1754300183064,23.6407,3557.4,3557.3,2.2304]
[1754300183771,23.9598,3557.4,3557.3,2.2304]
[1754300183970,24.165,3557.4,3557.3,2.2304]
[1754300184470,24.165,3557.4,3557.3,1.9348]
[1754300185569,24.165,3557.4,3557.3,2.2178]
[1754300186163,24.165,3557.4,3557.3,1.6967]
[1754300186368,24.165,3557.4,3557.3,0.5622]
[1754300186766,24.165,3557.4,3557.3,2.1861]
[1754300187471,22.3818,3557.4,3557.3,2.1861]
[1754300189771,22.7026,3557.4,3557.3,2.1861]
[1754300191273,23.6422,3557.4,3557.3,2.1861]
[1754300191873,24.1744,3557.4,3557.3,2.1861]
[1754300192364,24.1744,3557.4,3557.3,0.5622]
[1754300192766,24.1744,3557.4,3557.3,0.9528]
[1754300192967,24.1744,3557.4,3557.3,1.5763]
[1754300193373,24.1744,3557.4,3557.3,0.5622]
[1754300194970,24.1734,3557.4,3557.3,2.1861]
[1754300195175,24.1724,3557.4,3557.3,2.1861]
[1754300196469,24.1724,3557.4,3557.3,1.8874]
[1754300196864,24.1724,3557.4,3557.3,2.1861]
[1754300198876,5.0004,3557.4,3557.3,2.1861]
[1754300199074,24.1724,3557.4,3557.3,2.1861]
[1754300199377,20.9646,3557.4,3557.3,2.1861]
[1754300202180,3.2078,3557.8,3557.6,1.87906]
[1754300202375,3.2078,3558.2,3558.1,2.18598]
[1754300202679,3.92804477,3558.2,3558.1,2.18598]
[1754300202881,23.09904477,3558.2,3558.1,2.18598]
[1754300203282,24.89164477,3558.2,3558.1,2.18598]
[1754300203473,24.89164477,3558.2,3558.1,0.56208]
[1754300203679,1.7926,3558.1,3558.0,0.56209]
[1754300203879,2.51284477,3558.1,3558.0,0.56209]
[1754300204379,1.7926,3558.1,3558.0,0.56209]
[1754300204884,1.29119,3558.0,3557.7,0.56214]
[1754300205087,1.4718,3557.8,3557.7,0.56214]
[1754300205273,0.7291,3557.8,3557.5,0.6235]
[1754300205478,1.7926,3557.6,3557.5,0.75627]
[1754300205887,1.7926,3557.5,3557.4,0.56218]
[1754300206079,20.9626,3557.5,3557.4,0.56218]
[1754300206280,20.9626,3557.5,3557.4,0.75628]
[1754300206586,20.9626,3557.5,3557.4,1.57628]
[1754300207482,20.9626,3557.5,3557.4,1.88738]
[1754300207679,20.9626,3557.5,3557.4,2.18608]
[1754300208480,20.9626,3557.5,3557.4,1.3252]
[1754300208682,1.7926,3557.0,3556.9,3.77004]
[1754300208985,1.7926,3556.9,3556.8,0.1941]
[1754300209177,1.7926,3556.9,3556.7,0.6235]
[1754300209385,0.7291,3556.5,3556.4,1.57643]
[1754300209580,20.9626,3556.5,3556.4,1.57643]
[1754300209886,20.9626,3556.5,3556.4,1.88753]
[1754300211289,20.9626,3556.5,3556.4,0.95293]
[1754300211894,20.9626,3556.5,3556.4,0.1941]
[1754300212093,0.5322,3556.3,3556.2,4.07640142]
[1754300212386,20.9636,3556.3,3556.2,4.07640142]
[1754300212588,20.9636,3556.3,3556.2,1.0141]
[1754300212782,2.14296,3556.2,3555.9,4.68993911]
[1754300212985,22.3788,3556.3,3555.9,1.01238769]
[1754300212986,1.7926,3556.0,3555.9,1.01238769]
[1754300215894,1.7926,3556.0,3555.9,0.52868769]
[1754300217686,1.0499,3556.0,3555.9,1.22418769]
[1754300217884,20.9761,3556.0,3555.9,2.27898769]
[1754300218679,20.9741,3556.0,3555.9,2.27898769]
[1754300218883,20.9741,3556.0,3555.9,1.98248769]
[1754300219081,19.9051,3556.0,3555.9,2.27898769]
[1754300219280,19.3729,3556.0,3555.9,2.27898769]
[1754300219481,4.9781,3556.3,3556.2,0.6955]
[1754300219687,24.1541,3556.3,3556.2,0.5013]
[1754300219888,1.043,3556.2,3556.1,1.67327]
[1754300220084,1.043,3556.2,3556.1,1.55437]
[1754300220085,1.7703,3556.2,3556.1,1.55437]
[1754300220481,1.7703,3556.2,3556.1,0.56237]
[1754300220887,1.7703,3556.1,3556.0,0.56239]
[1754300221084,20.9473,3556.1,3556.0,0.56239]
[1754300221291,20.9473,3556.1,3556.0,2.31269]
[1754300223886,20.9473,3556.1,3556.0,1.1407]
[1754300224489,20.9473,3556.1,3556.0,1.7503]
[1754300226890,20.4931,3556.1,3556.0,1.7503]
[1754300227091,1.7703,3556.1,3556.0,1.7503]
[1754300227288,20.9473,3556.1,3555.9,1.09108769]
[1754300227487,20.9473,3556.1,3556.0,1.1407]
[1754300227792,20.1991,3556.1,3556.0,1.7503]
[1754300228092,20.4931,3556.1,3556.0,1.7503]
[1754300228283,20.9473,3556.1,3556.0,1.7503]
[1754300228894,20.9473,3556.1,3556.0,1.4538]
[1754300229594,20.9473,3556.1,3556.0,1.7503]
[1754300229791,20.9473,3556.1,3556.0,0.4452]
[1754300230089,2.33269,3556.0,3555.9,0.52868769]
[1754300231586,2.33269,3556.0,3555.9,0.04498769]
[1754300234499,2.33282,3555.2,3555.1,1.4538]
[1754300234700,21.51082,3555.2,3555.1,1.4538]
[1754300235300,21.51082,3555.2,3555.1,1.7503]
[1754300235901,21.51082,3555.2,3555.1,1.1407]
[1754300237503,21.51082,3555.2,3555.1,1.4538]
[1754300238901,21.51082,3555.2,3555.1,1.1407]
[1754300240506,21.51082,3555.2,3555.1,1.4538]
[1754300240906,0.56256,3554.9,3554.8,0.3131]
[1754300241207,1.7703,3554.7,3554.6,1.7503]
[1754300241507,20.1763,3554.7,3554.6,1.7503]
[1754300241705,20.9503,3554.7,3554.6,1.4372]
[1754300241909,20.9503,3554.7,3554.6,1.7503]
[1754300243005,19.18,3554.7,3554.6,1.7503]
[1754300243309,19.181,3554.7,3554.6,1.0548]
[1754300243502,19.5885,3554.7,3554.6,1.7503]
[1754300243709,20.1773,3554.7,3554.6,2.31291]
[1754300244012,20.9513,3554.7,3554.6,2.31291]
[1754300244711,20.9513,3554.7,3554.6,0.5013]
[1754300244908,20.9513,3554.7,3554.6,0.2916]
[1754300245109,0.9963,3554.7,3554.6,1.7826]
[1754300245310,19.181,3554.7,3554.6,1.7826]
[1754300246912,3.2078,3555.3,3555.2,2.34822]
[1754300247116,22.3928,3555.3,3555.2,2.34822]
[1754300247413,23.4329,3555.3,3555.2,2.34822]
[1754300247613,23.8998,3555.3,3555.2,2.34822]
[1754300248013,24.2101,3555.3,3555.2,1.7857]
[1754300248313,24.2101,3555.3,3555.2,0.2947]
[1754300248914,24.2101,3555.3,3555.2,1.4839]
[1754300249114,24.2101,3555.3,3555.2,1.7857]
[1754300249515,3.2078,3555.3,3555.2,1.7857]
[1754300249713,22.3998,3555.3,3555.2,1.7857]
[1754300251212,23.9068,3555.3,3555.2,1.7857]
[1754300251417,24.2171,3555.3,3555.2,1.7857]
[1754300251613,24.2171,3555.3,3555.2,1.1823]
[1754300252708,22.3998,3555.3,3554.6,0.4628]
[1754300252915,0.7373,3555.1,3555.0,0.2947]
[1754300253114,19.9233,3555.1,3555.0,0.7575]
[1754300253314,20.48584,3555.1,3554.9,0.56255]
[1754300253613,1.8173,3555.0,3554.9,1.88545]
[1754300254021,1.8173,3555.0,3554.9,2.34825]
[1754300254318,19.186,3555.1,3554.9,2.34825]
[1754300254519,19.186,3555.1,3555.0,1.0662]
[1754300254722,21.0033,3555.1,3555.0,1.7857]
[1754300254921,20.95274,3555.1,3555.0,1.7857]
[1754300255218,20.3902,3555.1,3555.0,1.7857]
[1754300255414,0.8268,3555.1,3555.0,1.7857]
[1754300255616,3.2078,3555.3,3555.2,1.7857]
[1754300255817,22.3928,3555.3,3555.2,1.7857]
[1754300256020,22.6065,3555.3,3555.2,1.7857]
[1754300256222,23.2196,3555.3,3555.2,1.7857]
[1754300256413,22.3928,3555.3,3555.1,0.56253]
[1754300256619,24.2101,3555.3,3555.2,1.7857]
[1754300256920,22.3928,3555.3,3555.2,1.7857]
[1754300257317,0.3115,3555.5,3555.3,0.5625]
[1754300257521,21.0013,3555.4,3555.3,2.3482]
[1754300258225,20.2241,3555.4,3555.3,2.3482]
[1754300259023,21.0013,3555.4,3555.3,1.4839]
[1754300259218,21.0013,3555.4,3555.3,0.97]
[1754300259425,21.0013,3555.4,3555.3,0.8572]
[1754300259616,0.7373,3555.1,3554.9,0.56255]
[1754300259814,20.3862,3555.0,3554.9,0.56255]
[1754300260025,20.9993,3555.0,3554.9,1.32005]
[1754300260223,20.9993,3555.0,3554.9,0.7575]
[1754300260224,21.56184,3555.0,3554.9,0.7575]
[1754300262321,1.29989,3554.7,3554.6,1.7857]
[1754300262527,21.56189,3554.7,3554.6,1.7857]
[1754300263922,20.9993,3554.7,3554.6,1.7857]
[1754300265823,19.182,3554.7,3554.6,1.7857]
[1754300266529,19.7072,3554.7,3554.6,1.4841]
[1754300266730,19.7072,3554.7,3554.6,1.7857]
[1754300266731,20.9993,3554.7,3554.6,1.7857]
[1754300267728,20.9993,3554.7,3554.6,1.5734]
[1754300267928,20.9993,3554.7,3554.6,1.7857]
[1754300271229,1.02943,3555.2,3555.1,0.56252]
[1754300271431,21.41787406,3555.2,3555.1,2.34822]
[1754300271625,21.41787406,3555.2,3555.1,1.4839]
[1754300271934,21.71947406,3555.2,3555.1,0.97]
[1754300272134,21.71947406,3555.2,3555.1,0.2947]
[1754300272833,1.29984,3555.0,3554.9,1.53255]
[1754300273132,21.56284,3555.0,3554.9,1.53255]
[1754300273331,21.56284,3555.0,3554.9,0.97]
[1754300274629,1.2857,3554.7,3554.6,0.56259]
[1754300274825,20.4687,3554.7,3554.6,2.31569]
[1754300275130,21.5163,3554.7,3554.6,2.31569]
[1754300276130,20.9537,3554.7,3554.6,2.31569]
[1754300276632,20.1983,3554.7,3554.6,2.31569]
[1754300277531,20.6408,3554.7,3554.6,2.31569]
[1754300278231,1.58853,3555.1,3555.0,1.58132]
[1754300278428,21.67289418,3555.1,3555.0,2.31562]
[1754300278829,21.67289418,3555.1,3555.0,1.4407]
[1754300279137,21.67289418,3555.1,3555.0,0.3035]
[1754300279328,21.67289418,3555.1,3555.0,0.9438]
[1754300279527,21.67289418,3555.1,3555.0,1.4407]
[1754300280629,21.67289418,3555.1,3555.0,0.3035]
[1754300281235,2.33325,3555.0,3554.9,0.86605]
[1754300281423,1.7707,3554.7,3554.6,0.9438]
[1754300281628,20.9537,3554.7,3554.6,0.9438]
[1754300282132,20.5112,3554.7,3554.6,2.31569]
[1754300282527,20.9537,3554.7,3554.6,2.31569]
[1754300286539,19.5932,3554.7,3554.6,2.31569]
[1754300286835,19.183,3554.7,3554.6,2.31569]
[1754300287441,2.3332,3555.3,3555.2,1.58129]
[1754300287635,21.5162,3555.3,3555.2,2.31559]
[1754300287835,19.8961,3555.3,3554.7,1.40646]
[1754300288032,0.3029,3554.8,3554.6,0.7343]
[1754300288231,20.58924,3555.3,3554.6,0.7343]
[1754300288232,20.9527,3554.7,3554.6,0.9438]
[1754300288543,20.9527,3554.7,3554.6,1.4407]
[1754300288744,20.9527,3554.7,3554.6,1.7531]
[1754300288942,20.9527,3554.7,3554.6,2.3157]
[1754300290142,20.9527,3554.7,3554.6,1.8782]
[1754300290332,20.9527,3554.7,3554.6,2.3157]
[1754300305661,20.9527,3554.7,3554.6,2.0033]
[1754300309261,20.9527,3554.7,3554.6,2.2995]
[1754300311166,20.9527,3554.7,3554.6,2.0033]
[1754300312277,20.9527,3554.7,3554.6,1.5064]
[1754300315672,20.9527,3554.7,3554.6,1.7203]
[1754300315872,20.9527,3554.7,3554.6,2.0222]
[1754300318572,3.2078,3555.0,3554.9,0.4249]
[1754300318875,1.0057,3555.4,3555.3,2.35259]
[1754300319070,20.64825529,3555.4,3555.3,2.35259]
[1754300319266,19.32725529,3555.4,3555.3,2.35259]
[1754300319577,19.179,3555.4,3555.3,2.35259]
[1754300321273,19.9855,3555.4,3555.3,2.35259]
[1754300321571,20.9478,3555.4,3555.3,0.56249]
[1754300322579,20.9478,3555.4,3555.3,1.54059]
[1754300322776,20.9478,3555.4,3555.3,0.86249]
[1754300322976,20.9478,3555.4,3555.3,2.35259]
[1754300324978,20.9478,3555.4,3555.3,1.54059]
[1754300325178,20.9478,3555.4,3555.3,0.86249]
[1754300325379,1.27679,3555.3,3555.2,0.5625]
[1754300325677,1.7688,3555.3,3555.2,0.5625]
[1754300326179,1.27681,3555.2,3555.1,0.56252]
[1754300326378,21.50831,3555.2,3555.1,0.56252]
[1754300328283,20.9458,3555.2,3555.1,0.56252]
[1754300329481,1.7688,3555.1,3555.0,2.05643]
[1754300329783,1.7688,3555.1,3555.0,1.28743]
[1754300330182,1.7688,3555.1,3555.0,1.75453]
[1754300330484,1.7688,3555.1,3555.0,2.05643]
[1754300330980,1.7688,3555.1,3555.0,2.35263]
[1754300331282,19.177,3555.2,3555.0,2.35263]
[1754300331480,19.177,3555.2,3555.0,1.88553]
[1754300331684,0.5118,3555.1,3555.0,1.28743]
[1754300331888,0.8065,3555.1,3555.0,1.28743]
[1754300332086,0.8065,3555.1,3555.0,1.58363]
[1754300332281,0.5118,3555.1,3555.0,2.35263]
[1754300332486,1.7688,3555.1,3555.0,2.35263]
[1754300333982,0.399,3555.1,3555.0,2.35263]
[1754300334190,1.0057,3555.1,3555.0,2.35263]
[1754300335088,1.4434,3555.1,3555.0,2.35263]
[1754300335291,1.7493,3555.1,3555.0,2.35263]
[1754300337987,1.7493,3555.1,3555.0,1.07353]
[1754300338185,1.7493,3555.1,3555.0,0.56253]
[1754300339190,1.7619,3555.0,3554.9,0.56255]
[1754300339390,20.9369,3555.0,3554.9,0.56255]
[1754300339893,1.7619,3554.8,3554.7,0.56258]
[1754300340085,20.9369,3554.8,3554.7,0.56258]
[1754300340885,20.9369,3554.8,3554.7,1.72378]
[1754300341085,20.9369,3554.8,3554.7,2.03098]
[1754300341284,20.9369,3554.8,3554.7,2.34818]
[1754300343082,20.1933,3554.8,3554.7,2.34818]
[1754300343291,19.6923,3554.8,3554.7,2.34818]
[1754300343492,20.4196,3554.8,3554.7,1.05198]
[1754300343694,20.9369,3554.8,3554.7,2.34818]
[1754300345280,3.2078,3555.6,3554.7,0.469]
[1754300345489,0.7104,3555.4,3555.3,1.25468]
[1754300345794,20.9369,3555.4,3555.3,2.34808]
[1754300346491,1.7619,3555.4,3555.3,2.34808]
[1754300346691,20.9369,3555.4,3555.3,0.56248]
[1754300346992,20.9369,3555.4,3555.3,2.34808]
[1754300347188,20.4992,3555.4,3555.3,2.34808]
[1754300347487,20.9369,3555.4,3555.3,2.34808]
[1754300348692,20.4992,3555.4,3555.3,2.34808]
[1754300349695,20.9369,3555.4,3555.3,2.34808]
[1754300350195,20.4992,3555.4,3555.3,2.34808]
[1754300350695,1.3242,3555.4,3555.3,2.34808]
[1754300350900,1.7619,3555.9,3555.8,2.34801]
[1754300351092,21.08706628,3555.9,3555.8,2.34801]
[1754300352389,21.08706628,3555.9,3555.8,2.03081]
[1754300352591,21.08704458,3555.9,3555.8,1.72361]
[1754300352791,19.174,3555.9,3555.6,0.56244]
[1754300352991,0.7104,3555.7,3555.6,0.56244]
[1754300353190,20.9349,3555.7,3555.6,0.56244]
[1754300354392,20.9349,3555.7,3555.6,1.03144]
[1754300355101,20.9349,3555.7,3555.6,0.56244]
[1754300355700,1.7619,3555.2,3555.1,0.4959]
[1754300355902,20.9349,3555.2,3555.1,0.9649]
[1754300356399,20.9349,3555.2,3555.1,2.03092]
[1754300356896,20.9349,3555.2,3555.1,2.34812]
[1754300361697,19.173,3555.2,3555.1,2.34812]
[1754300361899,0.2093,3555.6,3555.5,1.7856]
[1754300362204,19.3813,3555.6,3555.5,1.7856]
[1754300362595,20.9339,3555.6,3555.5,1.7856]
[1754300362999,1.7619,3555.6,3555.5,1.7856]
[1754300363201,20.9339,3555.6,3555.5,1.7856]
[1754300366009,1.7619,3555.6,3555.5,1.7856]
[1754300366304,20.9339,3555.6,3555.5,1.7856]
[1754300369107,1.7619,3555.6,3555.5,1.7856]
[1754300369310,0.5868,3555.8,3555.7,1.60433]
[1754300369507,19.7578,3555.8,3555.7,2.30583]
[1754300370002,0.2949,3555.8,3555.7,2.30583]
[1754300370202,1.4414,3556.8,3556.6,0.56228]
[1754300370407,1.7397,3556.6,3556.5,1.0828]
[1754300370610,21.78159659,3556.6,3556.5,0.5623]
[1754300370805,21.78159659,3556.6,3556.4,0.56231]
[1754300371010,1.7397,3556.5,3556.4,1.29781]
[1754300371809,1.7397,3556.5,3556.4,1.49491]
[1754300372810,3.2078,3556.9,3556.7,0.56227]
[1754300373104,20.9107,3556.8,3556.7,2.30567]
[1754300374507,3.2078,3556.9,3556.7,2.30567]
[1754300374710,19.169,3556.8,3556.7,2.30567]
[1754300374910,19.9646,3556.8,3556.7,2.30567]
[1754300375613,20.6104,3556.8,3556.7,2.30567]
[1754300375814,20.9087,3556.8,3556.7,2.30567]
[1754300376915,20.9087,3556.8,3556.7,1.49487]
[1754300377312,20.9087,3556.8,3556.7,0.86027]
[1754300377814,20.9087,3556.8,3556.7,1.29777]
[1754300378014,20.9087,3556.8,3556.7,2.01537]
[1754300380614,20.9087,3556.8,3556.3,1.40581]
[1754300380615,1.037,3556.7,3556.6,0.56228]
[1754300380815,1.7397,3556.7,3556.6,0.56228]
[1754300381415,1.7397,3556.7,3556.6,1.49488]
[1754300381616,1.7397,3556.7,3556.6,2.30568]
[1754300386626,0.9912,3556.7,3556.6,2.30568]
[1754300387225,1.7397,3556.7,3556.6,2.30568]
[1754300390326,0.2088,3556.7,3556.6,2.30568]
[1754300390531,0.5037,3556.7,3556.6,2.30568]
[1754300390727,0.2949,3556.7,3556.6,2.30568]
[1754300390933,4.6526,3556.9,3556.8,2.01536]
[1754300391233,24.1115,3556.9,3556.8,2.30566]
[1754300391730,20.9037,3556.9,3556.8,2.30566]
[1754300391930,20.4535,3556.9,3556.8,2.30566]
[1754300392727,20.1552,3556.9,3556.8,2.30566]
[1754300393334,20.6054,3556.9,3556.8,2.30566]
[1754300395229,20.1552,3556.9,3556.8,2.30566]
[1754300395834,20.6293,3556.9,3556.8,2.30566]
[1754300396037,20.9398,3556.9,3556.8,2.30566]
[1754300398226,0.311,3557.6,3557.2,1.40547]
[1754300398432,1.5786722,3557.6,3557.5,2.33985]
[1754300398635,20.58828255,3557.6,3557.5,2.33985]
[1754300398933,1.0091,3557.9,3557.8,0.8631]
[1754300399138,21.10953411,3557.9,3557.8,2.3398]
[1754300399434,21.82853202,3557.9,3557.8,2.3398]
[1754300399635,21.82853202,3557.9,3557.8,2.0263]
[1754300400542,21.82853202,3557.9,3557.8,2.3398]
[1754300401037,21.10953411,3557.9,3557.8,2.3398]
[1754300401636,21.10953411,3557.9,3557.8,0.5621]
[1754300402041,20.9562,3557.9,3557.8,0.5621]
[1754300402335,20.9562,3557.9,3557.8,1.8153]
[1754300402532,20.1711,3557.9,3557.8,2.3398]
[1754300402729,1.3201,3557.9,3557.8,2.3398]
[1754300402932,19.8606,3557.9,3557.8,2.3398]
[1754300403134,19.5577,3557.9,3557.8,2.3398]
[1754300403337,19.3626,3557.9,3557.8,2.3398]
[1754300403533,19.162,3557.9,3557.8,2.3398]
[1754300403934,19.9765,3557.9,3557.8,2.3398]
[1754300404135,20.1716,3557.9,3557.8,2.3398]
[1754300404537,20.6457,3557.9,3557.8,2.3398]
[1754300407136,0.6986,3557.9,3557.8,2.3398]
[1754300407331,1.0096,3557.9,3557.8,2.3398]
[1754300408540,1.4837,3557.9,3557.8,2.3398]
[1754300410141,1.4837,3557.9,3557.8,1.8323]
[1754300410442,1.7942,3557.9,3557.8,2.3398]
[1754300411541,1.4837,3557.9,3557.8,2.3398]
[1754300411742,1.0096,3557.9,3557.8,2.3398]
[1754300412938,1.4837,3557.9,3557.8,2.3398]
[1754300413736,1.7942,3557.9,3557.8,2.3398]
[1754300414238,1.7942,3557.9,3557.8,0.5621]
[1754300414438,1.26829,3557.9,3557.7,0.56211]
[1754300414739,20.9502,3557.8,3557.7,0.56211]
[1754300418843,2.35632,3557.7,3557.6,0.56212]
[1754300419742,1.7942,3557.7,3557.6,0.56212]
[1754300420042,1.7942,3557.7,3557.6,1.00532]
[1754300421738,1.4837,3557.7,3557.6,2.33982]
[1754300421944,0.311,3557.7,3557.6,2.33982]
[1754300422137,19.7689,3557.7,3557.6,1.28662]
[1754300422337,19.155,3557.7,3557.6,1.28662]
[1754300422741,19.155,3557.7,3557.6,2.33982]
[1754300422943,0.6986,3557.9,3557.8,2.3398]
[1754300423138,19.8536,3557.9,3557.8,2.3398]
[1754300423840,20.1646,3557.9,3557.8,2.3398]
[1754300424335,20.6387,3557.9,3557.8,2.3398]
[1754300424839,20.1646,3557.9,3557.8,2.3398]
[1754300426749,20.6052,3557.9,3557.8,2.3398]
[1754300426952,20.9074,3557.9,3557.8,2.3398]
[1754300427144,0.701,3557.7,3557.6,0.56213]
[1754300427344,20.889,3557.7,3557.6,0.56213]
[1754300428350,1.735,3557.2,3557.1,3.77001]
[1754300428649,1.735,3557.2,3557.0,0.56222]
[1754300428650,19.855,3557.2,3557.0,0.56222]
[1754300428844,1.70383,3557.0,3556.6,3.2078]
[1754300429047,0.701,3556.7,3556.6,3.2078]
[1754300429248,1.735,3556.7,3556.6,4.1676]
[1754300429452,20.889,3556.7,3556.6,3.7096]
[1754300430943,20.889,3556.7,3556.6,4.6951]
[1754300431152,20.889,3556.7,3556.6,4.9855]
[1754300433053,20.889,3556.7,3556.6,3.4979]
[1754300433248,0.1936,3556.5,3556.4,0.458]
[1754300433554,1.735,3556.5,3556.4,0.9598]
[1754300433756,1.735,3556.5,3556.4,1.2749]
[1754300434053,20.89,3556.5,3556.4,1.2749]
[1754300434243,0.4406,3556.3,3556.0,1.33548]
[1754300434451,1.735,3556.1,3556.0,1.2749]
[1754300434648,20.89,3556.1,3556.0,1.4873]
[1754300435652,0.3988,3556.5,3556.4,0.4241]
[1754300435954,20.89,3556.5,3556.4,0.7142]
[1754300436558,20.89,3556.5,3556.4,1.4873]
[1754300437351,1.735,3556.5,3556.4,1.4873]
[1754300437655,20.891,3556.5,3556.4,1.4873]
[1754300438553,20.891,3556.5,3556.4,1.7777]
[1754300441753,0.8394,3556.7,3556.6,0.7142]
[1754300441959,20.5908,3556.7,3556.6,1.7777]
[1754300442258,20.1502,3556.7,3556.6,1.7777]
[1754300443549,20.1502,3556.7,3556.6,4.9855]
[1754300443956,20.5908,3556.7,3556.6,4.9855]
[1754300444155,20.893,3556.7,3556.6,4.9855]
[1754300445160,19.8589,3556.7,3556.6,4.9855]
[1754300446058,19.158,3556.7,3556.6,4.9855]
[1754300446259,0.4957,3556.9,3556.8,1.7777]
[1754300446456,0.1936,3557.1,3557.0,1.7777]
[1754300446759,19.157,3557.1,3557.0,1.7777]
[1754300446950,4.5022,3557.4,3557.3,1.27638]
[1754300447154,4.5022,3557.4,3557.3,2.33988]
[1754300447356,19.3506,3557.4,3557.3,2.33988]
[1754300448057,19.6527,3557.4,3557.3,2.33988]
[1754300448659,19.157,3557.4,3557.3,2.33988]
[1754300449553,0.787,3557.6,3557.5,1.06465]
[1754300449755,0.787,3557.6,3557.5,5.54765]
[1754300449948,0.4957,3557.6,3557.5,5.54765]
[1754300451257,1.735,3557.6,3557.5,5.54765]
[1754300452165,1.735,3557.6,3557.5,4.06005]
[1754300452355,1.735,3557.6,3557.5,3.76995]
[1754300453262,1.735,3557.6,3557.5,4.22795]
[1754300453857,1.735,3557.6,3557.5,4.51805]
[1754300454050,1.735,3557.6,3557.5,4.72975]
[1754300455360,1.735,3557.6,3557.5,5.25745]
[1754300455559,1.735,3557.6,3557.5,5.57035]
[1754300460564,1.2944,3557.6,3557.5,5.57035]
[1754300460762,1.7499,3557.6,3557.5,5.57035]
[1754300460962,1.7379,3558.1,3558.0,1.06046]
[1754300461158,20.8899,3558.1,3558.0,1.51746]
[1754300461971,0.6929,3557.5,3557.4,0.6954]
[1754300462171,0.6929,3557.5,3557.4,1.7806]
[1754300462771,1.7379,3557.5,3557.4,1.7806]
[1754300462972,1.7379,3557.5,3557.4,2.34276]
[1754300463466,0.9926,3557.5,3557.4,2.34276]
[1754300463670,1.7379,3558.0,3557.9,1.71449]
[1754300463860,20.8889,3558.0,3557.9,2.34269]
[1754300464770,1.7379,3558.0,3557.9,2.34269]
[1754300464970,20.8889,3558.0,3557.9,2.34269]
[1754300469171,0.4909,3558.2,3558.1,2.02975]
[1754300469369,0.2977,3558.2,3558.1,2.34265]
[1754300469570,20.1416,3558.4,3558.3,1.25742]
[1754300469770,19.6399,3558.4,3558.3,2.34262]
[1754300469973,19.9317,3558.4,3558.3,2.34262]
[1754300470375,1.2824,3558.7,3558.6,0.56197]
[1754300470678,20.8869,3558.7,3558.6,2.34257]
[1754300471380,20.8859,3558.7,3558.6,2.34257]
[1754300471580,20.8849,3558.7,3558.6,2.34257]
[1754300472075,1.7379,3558.7,3558.6,2.34257]
[1754300472372,1.0,3559.0,3558.9,2.34253]
[1754300472578,1.0,3559.0,3558.9,5.55033]